fUSD/lending_fUSD_20240803
["ID","MTS","AMOUNT","RATE_DAILY","PERIOD"]
[333997105,1722670248778,-500.0,0.00016438,2]
[333997106,1722670248788,-540.33,0.00016438,2]
[333997107,1722670248797,-500.0,0.00016438,2]
[333997108,1722670248808,-311.18769075,0.00016438,2]
[333997109,1722670248818,-500.0,0.00016438,2]
[333997110,1722670248828,-500.0,0.00016438,2]
[333997111,1722670248838,-500.0,0.00016438,2]
[333997112,1722670248847,-500.0,0.00016438,2]
[333997113,1722670248856,-500.0,0.00016438,2]
[333997114,1722670248866,-500.0,0.00016438,2]
[333997115,1722670248877,-500.0,0.00016438,2]
[333997116,1722670248886,-500.0,0.00016438,2]
[333997117,1722670248896,-500.0,0.00016438,2]
[333997118,1722670248907,-500.0,0.00016438,2]
[333997119,1722670248916,-622.55,0.00016438,2]
[333997120,1722670248926,-503.96,0.00016438,2]
[333997121,1722670248935,-500.0,0.00016438,2]
[333997122,1722670248946,-523.19560553,0.00016438,2]
[333997123,1722670248956,-500.0,0.00016438,2]
[333997124,1722670248965,-500.0,0.00016438,2]
[333997125,1722670248974,-500.0,0.00016438,2]
[333997126,1722670248983,-500.0,0.00016438,2]
[333997127,1722670248993,-500.0,0.00016438,2]
[333997128,1722670249003,-500.0,0.00016438,2]
[333997129,1722670249012,-500.0,0.00016438,2]
[333997130,1722670249022,-500.0,0.00016438,2]
[333997131,1722670249032,-500.0,0.00016438,2]
[333997132,1722670249042,-500.0,0.00016438,2]
[333997133,1722670249051,-500.0,0.00016438,2]
[333997134,1722670249061,-500.0,0.00016438,2]
[333997135,1722670249071,-500.0,0.00016438,2]
[333997136,1722670249080,-500.0,0.00016438,2]
[333997137,1722670249089,-500.0,0.00016438,2]
[333997138,1722670249099,-500.0,0.00016438,2]
[333997139,1722670249108,-500.0,0.00016438,2]
[333997140,1722670249118,-604.12,0.00016438,2]
[333997141,1722670249128,-500.0,0.00016438,2]
[333997142,1722670249138,-500.0,0.00016438,2]
[333997143,1722670249149,-240.24037391,0.00016438,2]
[333997144,1722670249159,-500.0,0.00016438,2]
[333997145,1722670249169,-616.8,0.00016438,2]
[333997146,1722670249179,-500.0,0.00016438,2]
[333997147,1722670249189,-500.0,0.00016438,2]
[333997148,1722670249199,-500.0,0.00016438,2]
[333997149,1722670249209,-500.0,0.00016438,2]
[333997150,1722670249219,-500.0,0.00016438,2]
[333997151,1722670249229,-508.77469537,0.00016438,2]
[333997152,1722670249239,-500.0,0.00016438,2]
[333997153,1722670249248,-712.98,0.00016438,2]
[333997154,1722670249258,-500.0,0.00016438,2]
[333997155,1722670249269,-500.0,0.00016438,2]
[333997156,1722670249279,-500.0,0.00016438,2]
[333997157,1722670249289,-500.0,0.00016438,2]
[333997158,1722670249299,-500.0,0.00016438,2]
[333997159,1722670249309,-500.0,0.00016438,2]
[333997160,1722670249319,-500.0,0.00016438,2]
[333997161,1722670249329,-500.0,0.00016438,2]
[333997162,1722670249340,-500.0,0.00016438,2]
[333997163,1722670249350,-500.0,0.00016438,2]
[333997164,1722670249359,-500.0,0.00016438,2]
[333997165,1722670249369,-500.0,0.00016438,2]
[333997166,1722670249379,-500.0,0.00016438,2]
[333997167,1722670249389,-500.0,0.00016438,2]
[333997168,1722670249399,-515.45,0.00016438,2]
[333997169,1722670249409,-500.0,0.00016438,2]
[333997170,1722670249423,-500.0,0.00016438,2]
[333997171,1722670249433,-500.0,0.00016438,2]
[333997172,1722670249443,-500.0,0.00016438,2]
[333997173,1722670249453,-500.0,0.00016438,2]
[333997174,1722670249462,-500.0,0.00016438,2]
[333997175,1722670249472,-500.0,0.00016438,2]
[333997176,1722670249483,-500.0,0.00016438,2]
[333997177,1722670249493,-500.0,0.00016438,2]
[333997178,1722670249502,-500.0,0.00016438,2]
[333997179,1722670249511,-506.05363932,0.00016438,2]
[333997180,1722670249522,-500.0,0.00016438,2]
[333997181,1722670249531,-524.41,0.00016438,2]
[333997182,1722670249541,-500.0,0.00016438,2]
[333997183,1722670249550,-515.12775894,0.00016438,2]
[333997184,1722670249560,-500.0,0.00016438,2]
[333997185,1722670249570,-500.0,0.00016438,2]
[333997186,1722670249580,-500.0,0.00016438,2]
[333997187,1722670249590,-500.0,0.00016438,2]
[333997188,1722670249599,-500.0,0.00016438,2]
[333997189,1722670249609,-500.0,0.00016438,2]
[333997190,1722670249619,-500.0,0.00016438,2]
[333997191,1722670249628,-500.0,0.00016438,2]
[333997192,1722670249639,-500.0,0.00016438,2]
[333997193,1722670249649,-500.0,0.00016438,2]
[333997194,1722670249659,-500.0,0.00016438,2]
[333997195,1722670249669,-500.0,0.00016438,2]
[333997196,1722670249678,-706.98,0.00016438,2]
[333997197,1722670249688,-500.0,0.00016438,2]
[333997198,1722670249698,-500.0,0.00016438,2]
[333997199,1722670249708,-1900.41,0.00016438,2]
[333997200,1722670249720,-500.0,0.00016438,2]
[333997201,1722670249731,-500.0,0.00016438,2]
[333997202,1722670249741,-500.0,0.00016438,2]
[333997203,1722670249750,-696.17,0.00016438,2]
[333997204,1722670249762,-617.25,0.00016438,2]
[333997205,1722670249772,-500.0,0.00016438,2]
[333997206,1722670249782,-500.0,0.00016438,2]
[333997207,1722670249792,-500.0,0.00016438,2]
[333997208,1722670249804,-500.0,0.00016438,2]
[333997209,1722670249814,-500.0,0.00016438,2]
[333997210,1722670249824,-500.0,0.00016438,2]
[333997211,1722670249835,-562.83,0.00016438,2]
[333997212,1722670249844,-500.0,0.00016438,2]
[333997213,1722670249854,-774.35930621,0.00016438,2]
[333997214,1722670250383,-418.82809261,0.00014667,2]
[333997215,1722670250393,-31.74069379,0.00016438,2]
[333997216,1722670250403,-500.0,0.00016438,2]
[333997217,1722670250414,-616.64,0.00016438,2]
[333997218,1722670250423,-642.78,0.00016438,2]
[333997219,1722670250433,-500.0,0.00016438,2]
[333997220,1722670250444,-500.0,0.00016438,2]
[333997221,1722670250454,-500.0,0.00016438,2]
[333997222,1722670250463,-500.0,0.00016438,2]
[333997223,1722670250473,-500.0,0.00016438,2]
[333997224,1722670250482,-500.0,0.00016438,2]
[333997225,1722670250491,-315.82003862,0.00016438,2]
[333997226,1722670250503,-652.96996138,0.00016438,2]
[333997227,1722670250513,-500.0,0.00016438,2]
[333997228,1722670250522,-642.9,0.00016438,2]
[333997229,1722670250533,-500.0,0.00016438,2]
[333997230,1722670250543,-500.0,0.00016438,2]
[333997231,1722670250552,-500.0,0.00016438,2]
[333997232,1722670250562,-500.0,0.00016438,2]
[333997233,1722670250572,-500.0,0.00016438,2]
[333997234,1722670250586,-500.0,0.00016438,2]
[333997235,1722670250597,-500.0,0.00016438,2]
[333997236,1722670250607,-603.24,0.00016438,2]
[333997237,1722670250616,-628.64,0.00016438,2]
[333997238,1722670250625,-500.0,0.00016438,2]
[333997239,1722670250635,-500.0,0.00016438,2]
[333997240,1722670250644,-500.0,0.00016438,2]
[333997241,1722670250654,-500.0,0.00016438,2]
[333997242,1722670250663,-500.0,0.00016438,2]
[333997243,1722670250672,-500.0,0.00016438,2]
[333997244,1722670250682,-500.0,0.00016438,2]
[333997245,1722670250692,-815.19,0.00016438,2]
[333997246,1722670250702,-637.26,0.00016438,2]
[333997247,1722670250712,-500.0,0.00016438,2]
[333997248,1722670250725,-500.0,0.00016438,2]
[333997249,1722670250734,-500.0,0.00016438,2]
[333997250,1722670250744,-500.0,0.00016438,2]
[333997251,1722670250754,-500.0,0.00016438,2]
[333997252,1722670250764,-500.0,0.00016438,2]
[333997253,1722670250775,-903.74,0.00016438,2]
[333997254,1722670250784,-500.0,0.00016438,2]
[333997255,1722670250795,-500.0,0.00016438,2]
[333997256,1722670250805,-500.0,0.00016438,2]
[333997257,1722670250814,-934.99,0.00016438,2]
[333997258,1722670250823,-500.0,0.00016438,2]
[333997259,1722670250834,-500.0,0.00016438,2]
[333997260,1722670250844,-1888.82,0.00016438,2]
[333997261,1722670250854,-500.0,0.00016438,2]
[333997262,1722670250864,-500.0,0.00016438,2]
[333997263,1722670250873,-500.0,0.00016438,2]
[333997264,1722670250882,-573.05,0.00016438,2]
[333997265,1722670250891,-742.93,0.00016438,2]
[333997266,1722670250901,-514.56,0.00016438,2]
[333997267,1722670250911,-405.72814762,0.00016438,2]
[333997268,1722670250920,-500.0,0.00016438,2]
[333997269,1722670250929,-500.0,0.00016438,2]
[333997270,1722670250938,-500.0,0.00016438,2]
[333997271,1722670250947,-500.0,0.00016438,2]
[333997272,1722670250956,-500.0,0.00016438,2]
[333997273,1722670250966,-307.11926843,0.00016438,2]
[333997274,1722670250975,-500.0,0.00016438,2]
[333997275,1722670250984,-509.81,0.00016438,2]
[333997276,1722670250994,-500.0,0.00016438,2]
[333997277,1722670251003,-643.19,0.00016438,2]
[333997278,1722670251012,-500.0,0.00016438,2]
[333997279,1722670251022,-500.0,0.00016438,2]
[333997280,1722670251031,-500.0,0.00016438,2]
[333997281,1722670251041,-500.0,0.00016438,2]
[333997282,1722670251050,-500.0,0.00016438,2]
[333997283,1722670251060,-500.0,0.00016438,2]
[333997284,1722670251069,-500.0,0.00016438,2]
[333997285,1722670251079,-500.0,0.00016438,2]
[333997286,1722670251090,-500.0,0.00016438,2]
[333997287,1722670251099,-500.0,0.00016438,2]
[333997288,1722670251108,-500.0,0.00016438,2]
[333997289,1722670251118,-528.78,0.00016438,2]
[333997290,1722670251127,-967.16,0.00016438,2]
[333997291,1722670251136,-1248.72,0.00016438,2]
[333997292,1722670251145,-500.0,0.00016438,2]
[333997293,1722670251155,-633.74,0.00016438,2]
[333997294,1722670251164,-500.0,0.00016438,2]
[333997295,1722670251174,-753.93,0.00016438,2]
[333997296,1722670251183,-631.56,0.00016438,2]
[333997297,1722670251192,-540.14,0.00016438,2]
[333997298,1722670251201,-500.0,0.00016438,2]
[333997299,1722670251211,-500.0,0.00016438,2]
[333997300,1722670251220,-500.0,0.00016438,2]
[333997301,1722670251229,-500.0,0.00016438,2]
[333997302,1722670251238,-500.0,0.00016438,2]
[333997303,1722670251247,-537.15,0.00016438,2]
[333997304,1722670251256,-500.0,0.00016438,2]
[333997305,1722670251266,-509.59497164,0.00016438,2]
[333997306,1722670251275,-500.0,0.00016438,2]
[333997307,1722670251284,-500.0,0.00016438,2]
[333997308,1722670251293,-500.0,0.00016438,2]
[333997309,1722670251304,-706.6,0.00016438,2]
[333997310,1722670251313,-500.0,0.00016438,2]
[333997311,1722670251322,-500.0,0.00016438,2]
[333997312,1722670251332,-485.0,0.00016438,2]
[333997313,1722670251341,-500.0,0.00016438,2]
[333997314,1722670251350,-866.27,0.00016438,2]
[333997315,1722670251360,-218.27594999,0.00016438,2]
[333997316,1722670251371,-500.0,0.00016438,2]
[333997317,1722670251380,-624.51,0.00016438,2]
[333997318,1722670251389,-500.0,0.00016438,2]
[333997319,1722670251398,-500.0,0.00016438,2]
[333997320,1722670251408,-500.0,0.00016438,2]
[333997321,1722670251417,-706.02,0.00016438,2]
[333997322,1722670251426,-572.48,0.00016438,2]
[333997323,1722670251437,-500.0,0.00016438,2]
[333997324,1722670251446,-500.0,0.00016438,2]
[333997325,1722670251455,-538.06,0.00016438,2]
[333997326,1722670251465,-500.0,0.00016438,2]
[333997327,1722670251474,-500.0,0.00016438,2]
[333997328,1722670251483,-500.0,0.00016438,2]
[333997329,1722670251492,-500.0,0.00016438,2]
[333997330,1722670251501,-528.32,0.00016438,2]
[333997331,1722670251510,-546.09,0.00016438,2]
[333997332,1722670251519,-838.0,0.00016438,2]
[333997333,1722670251528,-500.0,0.00016438,2]
[333997334,1722670251538,-500.0,0.00016438,2]
[333997335,1722670251547,-608.55,0.00016438,2]
[333997336,1722670251556,-422.55977691,0.00016438,2]
[333997337,1722670251565,-500.0,0.00016438,2]
[333997338,1722670251574,-500.0,0.00016438,2]
[333997339,1722670251584,-1244.59,0.00016438,2]
[333997340,1722670251593,-500.0,0.00016438,2]
[333997341,1722670251602,-656.38,0.00016438,2]
[333997342,1722670251611,-500.0,0.00016438,2]
[333997343,1722670251620,-500.0,0.00016438,2]
[333997344,1722670251630,-273.86144833,0.00016438,2]
[333997345,1722670251639,-673.26,0.00016438,2]
[333997346,1722670251648,-702.25,0.00016438,2]
[333997347,1722670251657,-595.04,0.00016438,2]
[333997348,1722670251667,-500.0,0.00016438,2]
[333997349,1722670251676,-500.0,0.00016438,2]
[333997350,1722670251686,-500.0,0.00016438,2]
[333997351,1722670251695,-898.44,0.00016438,2]
[333997352,1722670251704,-500.0,0.00016438,2]
[333997353,1722670251713,-500.0,0.00016438,2]
[333997354,1722670251727,-500.0,0.00016438,2]
[333997355,1722670251735,-607.31,0.00016438,2]
[333997356,1722670251745,-500.0,0.00016438,2]
[333997357,1722670251754,-500.0,0.00016438,2]
[333997358,1722670251764,-591.97,0.00016438,2]
[333997359,1722670251773,-965.44,0.00016438,2]
[333997360,1722670251782,-500.0,0.00016438,2]
[333997361,1722670251791,-500.0,0.00016438,2]
[333997362,1722670251803,-500.0,0.00016438,2]
[333997363,1722670251812,-500.0,0.00016438,2]
[333997364,1722670251822,-353.25858375,0.00016438,2]
[333997365,1722670251832,-507.4,0.00016438,2]
[333997366,1722670251840,-549.6,0.00016438,2]
[333997367,1722670251849,-500.0,0.00016438,2]
[333997368,1722670251858,-500.0,0.00016438,2]
[333997369,1722670251867,-500.0,0.00016438,2]
[333997370,1722670251876,-745.25,0.00016438,2]
[333997371,1722670251885,-500.78905298,0.00016438,2]
[333997372,1722670251894,-500.0,0.00016438,2]
[333997373,1722670251903,-984.93,0.00016438,2]
[333997374,1722670251912,-567.09,0.00016438,2]
[333997375,1722670251922,-573.92,0.00016438,2]
[333997376,1722670251931,-575.31,0.00016438,2]
[333997377,1722670251940,-500.0,0.00016438,2]
[333997378,1722670251950,-500.0,0.00016438,2]
[333997379,1722670251959,-543.14,0.00016438,2]
[333997380,1722670251968,-500.0,0.00016438,2]
[333997381,1722670251977,-500.0,0.00016438,2]
[333997382,1722670251986,-236.66349033,0.00016438,2]
[333997383,1722670251995,-621.29828394,0.00016438,2]
[333997384,1722670252005,-923.48,0.00016438,2]
[333997385,1722670252014,-500.0,0.00016438,2]
[333997386,1722670252023,-543.78,0.00016438,2]
[333997387,1722670252033,-500.0,0.00016438,2]
[333997388,1722670252042,-500.54015764,0.00016438,2]
[333997389,1722670252051,-500.0,0.00016438,2]
[333997390,1722670252061,-1033.35,0.00016438,2]
[333997391,1722670252070,-500.0,0.00016438,2]
[333997392,1722670252079,-500.0,0.00016438,2]
[333997393,1722670252092,-842.97,0.00016438,2]
[333997394,1722670252101,-1654.4,0.00016438,2]
[333997395,1722670252112,-500.0,0.00016438,2]
[333997396,1722670252121,-500.0,0.00016438,2]
[333997397,1722670252130,-500.0,0.00016438,2]
[333997398,1722670252139,-500.0,0.00016438,2]
[333997399,1722670252149,-500.0,0.00016438,2]
[333997400,1722670252159,-500.0,0.00016438,2]
[333997401,1722670252168,-500.0,0.00016438,2]
[333997402,1722670252178,-500.0,0.00016438,2]
[333997403,1722670252187,-500.0,0.00016438,2]
[333997404,1722670252197,-554.57,0.00016438,2]
[333997405,1722670252206,-61.5680421,0.00016438,2]
[333997406,1722670252368,-438.4319579,0.00016438,2]
[333997407,1722670252378,-500.0,0.00016438,2]
[333997408,1722670252388,-500.0,0.00016438,2]
[333997409,1722670252397,-500.0,0.00016438,2]
[333997410,1722670252406,-370.35328066,0.00016438,2]
[333997445,1722671432231,-1902.25318947,0.00012397,2]
[333997447,1722671432243,-531.81153519,0.00012613,2]
[333997449,1722671432252,-628.09541039,0.00012613,2]
[333997451,1722671432260,-489.96167555,0.00012665,2]
[333997453,1722671432270,-196.53680438,0.00012681,2]
[333997455,1722671432278,-418.82809261,0.00012681,2]
[333997456,1722671432287,-183.01736282,0.00012681,2]
[333997457,1722671432296,-240.82516169,0.0001269,2]
[333997458,1722671432305,-399.46981614,0.00012696,2]
[333997459,1722671432314,-155.0,0.00012749,2]
[333997460,1722671432324,-83.86493607,0.00012811,2]
[333997461,1722671432340,-394.67506393,0.00012811,2]
[333997462,1722671432349,-454.19419225,0.00013561,2]
[333997463,1722671432359,-359.08278976,0.00013989,2]
[333997464,1722671432368,-319.52555181,0.00014261,2]
[333997465,1722671432377,-1572.52240225,0.00014451,2]
[333997466,1722671432389,-474.84312369,0.00014451,2]
[333997467,1722671432398,-520.0,0.00014619,2]
[333997468,1722671432408,-450.07744873,0.00014896,2]
[333997469,1722671432417,-300.0,0.00014898,2]
[333997470,1722671432427,-393.69549695,0.00014899,2]
[333997471,1722671432436,-203.20879356,0.00014899,2]
[333997472,1722671432446,-239.1920203,0.00014999,2]
[333997473,1722671432455,-478.54,0.00015075,2]
[333997474,1722671432464,-250.0,0.0001515,2]
[333997475,1722671432474,-480.0,0.00015153,2]
[333997476,1722671432484,-309.49,0.00015213,2]
[333997477,1722671432495,-179.43727796,0.00015263,2]
[333997478,1722671432505,-150.0,0.00015263,2]
[333997479,1722671432515,-219.29761262,0.00015263,2]
[333997480,1722671432524,-179.43727796,0.0001528,2]
[333997481,1722671432533,-39.66604432,0.00015297,2]
[333997482,1722671432545,-139.77123364,0.00015297,2]
[333997483,1722671432554,-150.0,0.0001531,2]
[333997484,1722671432563,-153.415,0.0001531,2]
[333997485,1722671432572,-179.43727796,0.00015314,2]
[333997486,1722671432588,-1038.562474,0.00015322,2]
[333997487,1722671432601,-668.28141107,0.00015322,2]
[333997488,1722671432619,-1735.25887197,0.00015322,2]
[333997489,1722671432650,-1284.55208872,0.00015322,2]
[333997491,1722671432662,-517.85068696,0.00015322,2]
[333997500,1722671438237,-4755.49446728,0.00015322,2]
[333997501,1722671438251,-255.59187666,0.00015322,2]
[333997502,1722671438261,-179.43727796,0.00015332,2]
[333997503,1722671438271,-179.43727796,0.00015349,2]
[333997504,1722671438281,-150.0,0.00015357,2]
[333997505,1722671438292,-179.43727796,0.00015366,2]
[333997506,1722671438302,-179.43727796,0.00015383,2]
[333997507,1722671438312,-179.43727796,0.000154,2]
[333997508,1722671438322,-150.0,0.00015404,2]
[333997509,1722671438332,-179.43727796,0.00015417,2]
[333997510,1722671438343,-179.43727796,0.00015434,2]
[333997511,1722671438353,-179.43727796,0.00015451,2]
[333997512,1722671438363,-150.0,0.00015451,2]
[333997513,1722671438374,-179.43727796,0.00015469,2]
[333997514,1722671438386,-179.43727796,0.00015486,2]
[333997515,1722671438396,-150.0,0.00015499,2]
[333997516,1722671438406,-179.43727796,0.00015503,2]
[333997517,1722671438416,-179.43727796,0.0001552,2]
[333997518,1722671438426,-179.43727796,0.00015537,2]
[333997519,1722671438436,-150.0,0.00015546,2]
[333997520,1722671438446,-179.43727796,0.00015554,2]
[333997521,1722671438456,-179.43727796,0.00015571,2]
[333997522,1722671438466,-179.43727796,0.00015588,2]
[333997523,1722671438476,-150.0,0.00015593,2]
[333997524,1722671438486,-179.43727796,0.00015606,2]
[333997525,1722671438498,-179.43727796,0.00015623,2]
[333997526,1722671438508,-179.43727796,0.0001564,2]
[333997527,1722671438518,-150.0,0.0001564,2]
[333997528,1722671438528,-179.43727796,0.00015657,2]
[333997529,1722671438538,-179.43727796,0.00015674,2]
[333997530,1722671438549,-150.0,0.00015687,2]
[333997532,1722671438559,-179.43727796,0.00015691,2]
[333997533,1722671438571,-179.43727796,0.00015708,2]
[333997534,1722671438581,-179.43727796,0.00015726,2]
[333997535,1722671438591,-150.0,0.00015734,2]
[333997536,1722671438602,-179.43727796,0.00015743,2]
[333997537,1722671438612,-179.43727796,0.0001576,2]
[333997538,1722671438621,-179.43727796,0.00015777,2]
[333997539,1722671438632,-150.0,0.00015781,2]
[333997540,1722671438641,-179.43727796,0.00015794,2]
[333997541,1722671438651,-179.43727796,0.00015811,2]
[333997542,1722671438661,-179.43727796,0.00015828,2]
[333997543,1722671438670,-150.0,0.00015828,2]
[333997544,1722671438680,-179.43727796,0.00015845,2]
[333997545,1722671438690,-179.43727796,0.00015863,2]
[333997546,1722671438699,-150.0,0.00015875,2]
[333997547,1722671438709,-179.43727796,0.0001588,2]
[333997548,1722671438718,-179.43727796,0.00015897,2]
[333997549,1722671438728,-179.43727796,0.00015914,2]
[333997550,1722671438738,-150.0,0.00015923,2]
[333997551,1722671438748,-179.43727796,0.00015931,2]
[333997552,1722671438759,-498.085,0.00015932,2]
[333997553,1722671438769,-179.43727796,0.00015948,2]
[333997554,1722671438779,-179.43727796,0.00015965,2]
[333997555,1722671438788,-150.0,0.0001597,2]
[333997556,1722671438798,-179.43727796,0.00015982,2]
[333997557,1722671438808,-265.21397656,0.00015999,2]
[333997558,1722671438818,-179.43727796,0.00016,2]
[333997559,1722671438828,-155.0,0.00016,2]
[333997560,1722671438838,-1000.0,0.00016,16]
[333997561,1722671438848,-179.43727796,0.00016017,2]
[333997562,1722671438857,-150.0,0.00016017,2]
[333997563,1722671438867,-179.43727796,0.00016034,2]
[333997564,1722671438877,-179.43727796,0.00016051,2]
[333997565,1722671438887,-150.0,0.00016064,2]
[333997566,1722671438897,-179.43727796,0.00016068,2]
[333997567,1722671438906,-179.43727796,0.00016085,2]
[333997568,1722671438916,-179.43727796,0.00016102,2]
[333997569,1722671438927,-150.0,0.00016111,2]
[333997570,1722671438938,-179.43727796,0.0001612,2]
[333997572,1722671438948,-179.43727796,0.00016137,2]
[333997573,1722671438958,-179.43727796,0.00016154,2]
[333997575,1722671438969,-150.0,0.00016158,2]
[333997578,1722671438979,-179.43727796,0.00016171,2]
[333997580,1722671438989,-179.43727796,0.00016188,2]
[333997582,1722671439001,-179.43727796,0.00016205,2]
[333997584,1722671439011,-150.0,0.00016205,2]
[333997586,1722671439021,-179.43727796,0.00016222,2]
[333997588,1722671439031,-179.43727796,0.00016239,2]
[333997590,1722671439042,-150.0,0.00016252,2]
[333997592,1722671439052,-179.43727796,0.00016257,2]
[333997594,1722671439062,-179.43727796,0.00016274,2]
[333997596,1722671439072,-300.0,0.00016275,2]
[333997598,1722671439083,-150.0,0.00016275,2]
[333997600,1722671439094,-425.87,0.00016275,2]
[333997603,1722671439104,-150.0,0.00016275,2]
[333997605,1722671439114,-150.0,0.00016275,2]
[333997607,1722671439124,-150.0,0.00016275,2]
[333997609,1722671439134,-150.0,0.00016275,2]
[333997611,1722671439149,-150.0,0.00016275,2]
[333997613,1722671439159,-425.87,0.00016275,2]
[333997615,1722671439169,-150.0,0.00016275,2]
[333997617,1722671439179,-150.0,0.00016275,2]
[333997619,1722671439189,-150.0,0.00016275,2]
[333997621,1722671439200,-425.66,0.00016275,2]
[333997623,1722671439210,-356.11,0.00016275,2]
[333997625,1722671439220,-150.0,0.00016275,2]
[333997627,1722671439231,-150.0,0.00016275,2]
[333997629,1722671439240,-150.0,0.00016275,2]
[333997631,1722671439252,-150.0,0.00016275,2]
[333997633,1722671439261,-150.0,0.00016275,2]
[333997725,1722671440140,-150.0,0.00016275,2]
[333997728,1722671440164,-653.17,0.00016275,2]
[333997731,1722671440188,-356.11,0.00016275,2]
[333997734,1722671440209,-150.0,0.00016275,2]
[333997737,1722671440229,-150.0,0.00016275,2]
[333997739,1722671440239,-150.0,0.00016275,2]
[333997741,1722671440249,-150.0,0.00016275,2]
[333997743,1722671440258,-150.0,0.00016275,2]
[333997745,1722671440268,-179.43727796,0.00016291,2]
[333997748,1722671440278,-150.0,0.00016299,2]
[333997750,1722671440287,-420.0,0.00016307,2]
[333997752,1722671440296,-179.43727796,0.00016308,2]
[333997754,1722671440306,-179.43727796,0.00016325,2]
[333997756,1722671440315,-851.54276625,0.00016338,2]
[333997758,1722671440325,-589.24495408,0.00016338,2]
[333997760,1722671440334,-6185.02740162,0.00016338,2]
[333997779,1722671440792,-751.47617767,0.00016338,2]
[333997780,1722671440804,-338.215,0.00016338,2]
[333997781,1722671440815,-376.75,0.00016338,2]
[333997782,1722671440826,-1751.5602498,0.00016338,2]
[333997783,1722671440838,-731.9814936,0.00016338,2]
[333997784,1722671440847,-2806.1375,0.00016338,2]
[333997785,1722671440856,-1000.0,0.00016338,2]
[333997786,1722671440865,-7500.0,0.00016338,2]
[333997788,1722671440875,-857.5982,0.00016338,2]
[333997790,1722671440884,-179.43727796,0.00016342,2]
[333997792,1722671440894,-150.0,0.00016346,2]
[333997794,1722671440903,-179.43727796,0.00016359,2]
[333997796,1722671440912,-179.43727796,0.00016376,2]
[333997798,1722671440922,-179.43727796,0.00016394,2]
[333997800,1722671440931,-150.0,0.00016394,2]
[333997802,1722671440940,-179.43727796,0.00016411,2]
[333997804,1722671440950,-2601.76188012,0.00016417,8]
[333997806,1722671440959,-179.43727796,0.00016428,2]
[333997807,1722671440969,-1500.73315549,0.00016428,2]
[333997808,1722671440980,-500.0,0.00016428,2]
[333997858,1722671441535,-35697.33254384,0.00014988,2]
[333997860,1722671441545,-153.415,0.0001564,2]
[333997862,1722671441554,-1324.50802191,0.00016428,2]
[333997864,1722671441564,-554.2068629,0.00016428,2]
[333997866,1722671441573,-2246.18772805,0.00016436,3]
[333997870,1722671441604,-1275.2531778,0.00016436,3]
[333997872,1722671441615,-347.833572,0.00016436,3]
[333997875,1722671441627,-598.62710039,0.00016436,3]
[333997877,1722671441639,-3537.73874138,0.00016436,3]
[333997880,1722671441655,-650.0,0.00016436,3]
[333997882,1722671441667,-283.90346935,0.00016436,3]
[333997884,1722671441678,-285.16290755,0.00016436,3]
[333997886,1722671441689,-2025.26791969,0.00016436,3]
[333997888,1722671441700,-730.55933782,0.00016436,3]
[333998049,1722671443324,-255.59187666,0.00016436,3]
[333998220,1722671445026,-53761.65134743,0.00016436,3]